fUST/lending_fUST_20250312
["ID","MTS","AMOUNT","RATE_DAILY","PERIOD"]
[355921781,1741716662970,-500.0,0.00022191,2]
[355921782,1741716662981,-500.0,0.00022191,2]
[355921783,1741716662991,-2304.11,0.00022191,2]
[355921784,1741716663000,-500.0,0.00022191,2]
[355921785,1741716663011,-500.0,0.00022191,2]
[355921786,1741716663022,-3573.38,0.00022191,2]
[355921787,1741716663034,-2654.41,0.00022191,2]
[355921788,1741716663044,-912.54,0.00022191,2]
[355921789,1741716663053,-500.0,0.00022191,2]
[355921790,1741716663065,-1747.6,0.00022191,2]
[355921791,1741716663076,-500.0,0.00022191,2]
[355921792,1741716663085,-627.59,0.00022191,2]
[355921793,1741716663096,-574.19,0.00022191,2]
[355921794,1741716663107,-500.0,0.00022191,2]
[355921795,1741716663117,-617.45,0.00022191,2]
[355921796,1741716663127,-500.0,0.00022191,2]
[355921797,1741716663137,-500.0,0.00022191,2]
[355921798,1741716663147,-500.0,0.00022191,2]
[355921799,1741716663157,-500.0,0.00022191,2]
[355921800,1741716663167,-500.0,0.00022191,2]
[355921801,1741716663177,-500.0,0.00022191,2]
[355921802,1741716663188,-512.1,0.00022191,2]
[355921803,1741716663199,-500.0,0.00022191,2]
[355921804,1741716663209,-500.0,0.00022191,2]
[355921805,1741716663219,-1624.83,0.00022191,2]
[355921806,1741716663230,-500.0,0.00022191,2]
[355921807,1741716663240,-500.0,0.00022191,2]
[355921808,1741716663251,-500.0,0.00022191,2]
[355921809,1741716663265,-500.0,0.00022191,2]
[355921810,1741716663275,-500.0,0.00022191,2]
[355921811,1741716663286,-500.0,0.00022191,2]
[355921812,1741716663296,-1388.31,0.00022191,2]
[355921813,1741716663306,-500.0,0.00022191,2]
[355921814,1741716663316,-500.0,0.00022191,2]
[355921815,1741716663327,-500.0,0.00022191,2]
[355921816,1741716663338,-500.0,0.00022191,2]
[355921817,1741716663348,-500.0,0.00022191,2]
[355921818,1741716663359,-2527.61,0.00022191,2]
[355921819,1741716663370,-500.0,0.00022191,2]
[355921820,1741716663381,-500.0,0.00022191,2]
[355921821,1741716663391,-500.0,0.00022191,2]
[355921822,1741716663401,-500.0,0.00022191,2]
[355921823,1741716663411,-500.0,0.00022191,2]
[355921824,1741716663422,-1505.11,0.00022191,2]
[355921825,1741716663434,-1159.19,0.00022191,2]
[355921826,1741716663445,-500.0,0.00022191,2]
[355921827,1741716663456,-500.0,0.00022191,2]
[355921828,1741716663466,-500.0,0.00022191,2]
[355921829,1741716663476,-500.0,0.00022191,2]
[355921830,1741716663486,-500.0,0.00022191,2]
[355921831,1741716663496,-1771.79,0.00022191,2]
[355921832,1741716663506,-500.0,0.00022191,2]
[355921833,1741716663520,-500.0,0.00022191,2]
[355921834,1741716663531,-500.0,0.00022191,2]
[355921835,1741716663541,-2594.12,0.00022191,2]
[355921836,1741716663551,-500.0,0.00022191,2]
[355921837,1741716663562,-500.0,0.00022191,2]
[355921838,1741716663572,-500.0,0.00022191,2]
[355921839,1741716663582,-564.98,0.00022191,2]
[355921840,1741716663592,-500.0,0.00022191,2]
[355921841,1741716663602,-741.15,0.00022191,2]
[355921842,1741716663612,-514.01,0.00022191,2]
[355921843,1741716663622,-500.0,0.00022191,2]
[355921844,1741716663632,-500.0,0.00022191,2]
[355921845,1741716663642,-500.0,0.00022191,2]
[355921846,1741716663652,-500.0,0.00022191,2]
[355921847,1741716663661,-500.0,0.00022191,2]
[355921848,1741716663672,-500.0,0.00022191,2]
[355921849,1741716663682,-500.0,0.00022191,2]
[355921850,1741716663692,-773.02,0.00022191,2]
[355921851,1741716663702,-500.0,0.00022191,2]
[355921852,1741716663712,-500.0,0.00022191,2]
[355921853,1741716663723,-500.0,0.00022191,2]
[355921854,1741716663733,-783.0,0.00022191,2]
[355921855,1741716663743,-500.0,0.00022191,2]
[355921856,1741716663752,-500.0,0.00022191,2]
[355921857,1741716663767,-1890.4,0.00022191,2]
[355921858,1741716663777,-500.0,0.00022191,2]
[355921859,1741716663787,-500.0,0.00022191,2]
[355921860,1741716663797,-500.0,0.00022191,2]
[355921861,1741716663807,-669.95,0.00022191,2]
[355921862,1741716663816,-500.0,0.00022191,2]
[355921863,1741716663827,-157.83086385,0.00022191,2]
[355921864,1741716663836,-647.88,0.00022191,2]
[355921865,1741716663846,-500.0,0.00022191,2]
[355921866,1741716663855,-523.3,0.00022191,2]
[355921867,1741716663865,-500.0,0.00022191,2]
[355921868,1741716663875,-1680.4,0.00022191,2]
[355921869,1741716663884,-500.0,0.00022191,2]
[355921870,1741716663895,-1121.75,0.00022191,2]
[355921871,1741716663904,-500.0,0.00022191,2]
[355921872,1741716663914,-647.83,0.00022191,2]
[355921873,1741716663924,-500.0,0.00022191,2]
[355921874,1741716663934,-500.0,0.00022191,2]
[355921875,1741716663944,-636.13799834,0.00022191,2]
[355921876,1741716663953,-1614.37,0.00022191,2]
[355921877,1741716663963,-500.0,0.00022191,2]
[355921878,1741716663973,-500.0,0.00022191,2]
[355921879,1741716663983,-500.0,0.00022191,2]
[355921880,1741716663993,-500.0,0.00022191,2]
[355921881,1741716664002,-500.0,0.00022191,2]
[355921882,1741716664015,-500.0,0.00022191,2]
[355921883,1741716664027,-607.02,0.00022191,2]
[355921884,1741716664039,-500.0,0.00022191,2]
[355921885,1741716664049,-500.0,0.00022191,2]
[355921886,1741716664059,-800.76,0.00022191,2]
[355921887,1741716664070,-531.15323834,0.00022191,2]
[355921888,1741716664080,-1280.44,0.00022191,2]
[355921889,1741716664090,-516.93916355,0.00022191,2]
[355921890,1741716664101,-500.0,0.00022191,2]
[355921891,1741716664111,-500.0,0.00022191,2]
[355921892,1741716664120,-500.0,0.00022191,2]
[355921893,1741716664130,-555.5,0.00022191,2]
[355921894,1741716664358,-500.0,0.00022191,2]
[355921895,1741716664369,-500.0,0.00022191,2]
[355921896,1741716664379,-500.0,0.00022191,2]
[355921897,1741716664389,-500.0,0.00022191,2]
[355921898,1741716664399,-721.26,0.00022191,2]
[355921899,1741716664409,-508.16143812,0.00022191,2]
[355921900,1741716664418,-1615.29,0.00022191,2]
[355921901,1741716664428,-500.0,0.00022191,2]
[355921902,1741716664438,-500.0,0.00022191,2]
[355921903,1741716664447,-500.0,0.00022191,2]
[355921904,1741716664457,-500.0,0.00022191,2]
[355921905,1741716664467,-500.0,0.00022191,2]
[355921906,1741716664476,-1063.8,0.00022191,2]
[355921907,1741716664486,-500.0,0.00022191,2]
[355921908,1741716664495,-500.0,0.00022191,2]
[355921909,1741716664506,-993.16,0.00022191,2]
[355921910,1741716664518,-534.01110994,0.00022191,2]
[355921911,1741716664528,-500.0,0.00022191,2]
[355921912,1741716664537,-500.0,0.00022191,2]
[355921914,1741716664547,-620.86280669,0.00022191,2]
[355921915,1741716664557,-500.0,0.00022191,2]
[355921916,1741716664566,-2377.08,0.00022191,2]
[355921917,1741716664576,-500.0,0.00022191,2]
[355921918,1741716664585,-500.0,0.00022191,2]
[355921919,1741716664595,-500.0,0.00022191,2]
[355921920,1741716664605,-500.0,0.00022191,2]
[355921921,1741716664615,-1689.79,0.00022191,2]
[355921922,1741716664624,-500.0,0.00022191,2]
[355921923,1741716664633,-538.76584679,0.00022191,2]
[355921924,1741716664643,-500.0,0.00022191,2]
[355921925,1741716664653,-1182.74,0.00022191,2]
[355921926,1741716664663,-500.0,0.00022191,2]
[355921927,1741716664673,-500.0,0.00022191,2]
[355921928,1741716664683,-500.0,0.00022191,2]
[355921929,1741716664693,-500.0,0.00022191,2]
[355921930,1741716664703,-2662.49,0.00022191,2]
[355921931,1741716664713,-1204.27,0.00022191,2]
[355921932,1741716664723,-500.0,0.00022191,2]
[355921933,1741716664732,-760.44,0.00022191,2]
[355921934,1741716664742,-500.0,0.00022191,2]
[355921935,1741716664752,-717.54,0.00022191,2]
[355921936,1741716664766,-500.0,0.00022191,2]
[355921937,1741716664776,-500.0,0.00022191,2]
[355921938,1741716664786,-500.0,0.00022191,2]
[355921939,1741716664796,-1467.71,0.00022191,2]
[355921940,1741716664807,-500.0,0.00022191,2]
[355921941,1741716664816,-500.0,0.00022191,2]
[355921942,1741716664827,-2537.49,0.00022191,2]
[355921943,1741716664836,-500.0,0.00022191,2]
[355921944,1741716664845,-500.0,0.00022191,2]
[355921945,1741716664858,-500.0,0.00022191,2]
[355921946,1741716664868,-500.0,0.00022191,2]
[355921947,1741716664879,-500.0,0.00022191,2]
[355921948,1741716664888,-517.91013905,0.00022191,2]
[355921949,1741716664898,-1701.43,0.00022191,2]
[355921950,1741716664908,-500.0,0.00022191,2]
[355921951,1741716664918,-500.0,0.00022191,2]
[355921952,1741716664928,-1155.99,0.00022191,2]
[355921953,1741716664937,-500.0,0.00022191,2]
[355921954,1741716664946,-500.0,0.00022191,2]
[355921955,1741716664956,-500.0,0.00022191,2]
[355921956,1741716664966,-644.13,0.00022191,2]
[355921957,1741716664976,-500.0,0.00022191,2]
[355921958,1741716664985,-500.0,0.00022191,2]
[355921959,1741716664995,-500.0,0.00022191,2]
[355921960,1741716665004,-834.21,0.00022191,2]
[355921961,1741716665019,-500.0,0.00022191,2]
[355921962,1741716665030,-500.0,0.00022191,2]
[355921963,1741716665040,-798.51,0.00022191,2]
[355921964,1741716665050,-500.0,0.00022191,2]
[355921965,1741716665060,-500.0,0.00022191,2]
[355921966,1741716665070,-500.0,0.00022191,2]
[355921967,1741716665079,-908.5,0.00022191,2]
[355921968,1741716665089,-526.6302301,0.00022191,2]
[355921969,1741716665099,-500.0,0.00022191,2]
[355921970,1741716665111,-500.0,0.00022191,2]
[355921971,1741716665122,-500.0,0.00022191,2]
[355921972,1741716665133,-572.05,0.00022191,2]
[355921973,1741716665142,-500.0,0.00022191,2]
[355921974,1741716665152,-500.0,0.00022191,2]
[355921975,1741716665163,-1740.21,0.00022191,2]
[355921976,1741716665172,-1291.37,0.00022191,2]
[355921977,1741716665183,-500.0,0.00022191,2]
[355921978,1741716665196,-1766.21,0.00022191,2]
[355921979,1741716665206,-682.17,0.00022191,2]
[355921980,1741716665216,-500.0,0.00022191,2]
[355921981,1741716665227,-893.83,0.00022191,2]
[355921982,1741716665237,-500.0,0.00022191,2]
[355921983,1741716665247,-500.0,0.00022191,2]
[355921984,1741716665257,-500.0,0.00022191,2]
[355921985,1741716665269,-538.54200938,0.00022191,2]
[355921986,1741716665279,-500.0,0.00022191,2]
[355921987,1741716665289,-500.0,0.00022191,2]
[355921988,1741716665299,-500.0,0.00022191,2]
[355921989,1741716665309,-500.0,0.00022191,2]
[355921990,1741716665319,-500.0,0.00022191,2]
[355921991,1741716665328,-2321.3,0.00022191,2]
[355921992,1741716665338,-500.0,0.00022191,2]
[355921993,1741716665348,-500.0,0.00022191,2]
[355921994,1741716665358,-500.0,0.00022191,2]
[355921995,1741716665368,-1549.95,0.00022191,2]
[355921996,1741716665378,-2086.15,0.00022191,2]
[355921997,1741716665388,-500.0,0.00022191,2]
[355921998,1741716665398,-500.0,0.00022191,2]
[355921999,1741716665407,-500.0,0.00022191,2]
[355922000,1741716665417,-936.91,0.00022191,2]
[355922001,1741716665427,-500.0,0.00022191,2]
[355922002,1741716665436,-1804.17,0.00022191,2]
[355922003,1741716665446,-500.0,0.00022191,2]
[355922004,1741716665455,-931.4,0.00022191,2]
[355922005,1741716665465,-500.0,0.00022191,2]
[355922006,1741716665474,-1955.81,0.00022191,2]
[355922007,1741716665484,-500.0,0.00022191,2]
[355922008,1741716665494,-500.0,0.00022191,2]
[355922009,1741716665504,-560.16502138,0.00022191,2]
[355922010,1741716665517,-1203.57,0.00022191,2]
[355922011,1741716665527,-500.0,0.00022191,2]
[355922012,1741716665537,-500.0,0.00022191,2]
[355922013,1741716665546,-1167.97,0.00022191,2]
[355922014,1741716665556,-500.0,0.00022191,2]
[355922015,1741716665566,-500.0,0.00022191,2]
[355922016,1741716665576,-500.0,0.00022191,2]
[355922017,1741716665585,-500.0,0.00022191,2]
[355922018,1741716665595,-3441.63,0.00022191,2]
[355922019,1741716665604,-500.0,0.00022191,2]
[355922020,1741716665614,-500.0,0.00022191,2]
[355922021,1741716665623,-500.0,0.00022191,2]
[355922022,1741716665633,-500.0,0.00022191,2]
[355922023,1741716665643,-500.0,0.00022191,2]
[355922024,1741716665653,-1565.71,0.00022191,2]
[355922025,1741716665664,-500.0,0.00022191,2]
[355922026,1741716665673,-510.45606916,0.00022191,2]
[355922027,1741716665683,-1264.65,0.00022191,2]
[355922028,1741716665693,-500.0,0.00022191,2]
[355922029,1741716665703,-1028.23,0.00022191,2]
[355922030,1741716665712,-500.0,0.00022191,2]
[355922031,1741716665721,-500.0,0.00022191,2]
[355922032,1741716665731,-500.0,0.00022191,2]
[355922033,1741716665740,-526.77971681,0.00022191,2]
[355922034,1741716665750,-500.0,0.00022191,2]
[355922035,1741716665760,-500.0,0.00022191,2]
[355922036,1741716665770,-500.0,0.00022191,2]
[355922037,1741716665780,-500.0,0.00022191,2]
[355922038,1741716665790,-1625.43,0.00022191,2]
[355922039,1741716665799,-1803.2,0.00022191,2]
[355922040,1741716665809,-500.0,0.00022191,2]
[355922041,1741716665819,-500.0,0.00022191,2]
[355922042,1741716665829,-500.0,0.00022191,2]
[355922043,1741716665838,-500.0,0.00022191,2]
[355922044,1741716665848,-500.0,0.00022191,2]
[355922045,1741716665858,-500.0,0.00022191,2]
[355922046,1741716665868,-500.0,0.00022191,2]
[355922047,1741716665878,-500.0,0.00022191,2]
[355922048,1741716665887,-500.0,0.00022191,2]
[355922049,1741716665897,-500.0,0.00022191,2]
[355922050,1741716665906,-500.0,0.00022191,2]
[355922051,1741716665915,-500.0,0.00022191,2]
[355922052,1741716665925,-1045.75,0.00022191,2]
[355922053,1741716665935,-500.0,0.00022191,2]
[355922054,1741716665945,-500.0,0.00022191,2]
[355922055,1741716665955,-791.16,0.00022191,2]
[355922056,1741716665964,-500.0,0.00022191,2]
[355922057,1741716665974,-500.0,0.00022191,2]
[355922058,1741716665984,-500.0,0.00022191,2]
[355922059,1741716665994,-500.0,0.00022191,2]
[355922060,1741716666004,-500.0,0.00022191,2]
[355922061,1741716666017,-509.53061528,0.00022191,2]
[355922062,1741716666031,-500.0,0.00022191,2]
[355922063,1741716666041,-500.0,0.00022191,2]
[355922064,1741716666051,-500.0,0.00022191,2]
[355922065,1741716666062,-500.0,0.00022191,2]
[355922066,1741716666071,-500.0,0.00022191,2]
[355922067,1741716666081,-500.0,0.00022191,2]
[355922068,1741716666090,-500.0,0.00022191,2]
[355922069,1741716666102,-500.0,0.00022191,2]
[355922070,1741716666112,-500.0,0.00022191,2]
[355922071,1741716666121,-500.0,0.00022191,2]
[355922072,1741716666130,-500.0,0.00022191,2]
[355922073,1741716666141,-500.0,0.00022191,2]
[355922074,1741716666150,-500.0,0.00022191,2]
[355922075,1741716666159,-505.4770946,0.00022191,2]
[355922076,1741716666169,-500.0,0.00022191,2]
[355922077,1741716666178,-500.0,0.00022191,2]
[355922078,1741716666187,-500.0,0.00022191,2]
[355922079,1741716666197,-500.0,0.00022191,2]
[355922080,1741716666208,-500.0,0.00022191,2]
[355922081,1741716666217,-500.0,0.00022191,2]
[355922082,1741716666227,-500.0,0.00022191,2]
[355922083,1741716666236,-500.0,0.00022191,2]
[355922084,1741716666246,-500.0,0.00022191,2]
[355922085,1741716666255,-500.0,0.00022191,2]
[355922086,1741716666267,-500.0,0.00022191,2]
[355922087,1741716666276,-500.0,0.00022191,2]
[355922089,1741716666285,-500.0,0.00022191,2]
[355922090,1741716666294,-500.0,0.00022191,2]
[355922091,1741716666303,-939.85,0.00022191,2]
[355922092,1741716666313,-500.0,0.00022191,2]
[355922093,1741716666323,-500.0,0.00022191,2]
[355922094,1741716666333,-522.34451607,0.00022191,2]
[355922095,1741716666342,-1070.64,0.00022191,2]
[355922096,1741716666351,-500.0,0.00022191,2]
[355922097,1741716666360,-500.0,0.00022191,2]
[355922098,1741716666369,-500.0,0.00022191,2]
[355922099,1741716666378,-500.0,0.00022191,2]
[355922100,1741716666387,-700.06,0.00022191,2]
[355922101,1741716666397,-500.0,0.00022191,2]
[355922102,1741716666406,-500.0,0.00022191,2]
[355922103,1741716666415,-500.0,0.00022191,2]
[355922104,1741716666425,-500.0,0.00022191,2]
[355922105,1741716666434,-500.0,0.00022191,2]
[355922106,1741716666443,-500.0,0.00022191,2]
[355922107,1741716666453,-500.0,0.00022191,2]
[355922108,1741716666463,-500.0,0.00022191,2]
[355922109,1741716666472,-914.13,0.00022191,2]
[355922110,1741716666482,-500.0,0.00022191,2]
[355922111,1741716666491,-500.0,0.00022191,2]
[355922112,1741716666501,-1543.09,0.00022191,2]
[355922113,1741716666513,-500.0,0.00022191,2]
[355922114,1741716666523,-1087.78,0.00022191,2]
[355922115,1741716666532,-287.52938993,0.00022191,2]
[355922116,1741716666542,-500.0,0.00022191,2]
[355922117,1741716666551,-500.0,0.00022191,2]
[355922118,1741716666561,-500.0,0.00022191,2]
[355922119,1741716666570,-500.0,0.00022191,2]
[355922120,1741716666580,-3025.57,0.00022191,2]
[355922121,1741716666590,-525.06,0.00022191,2]
[355922122,1741716666599,-500.0,0.00022191,2]
[355922123,1741716666609,-500.0,0.00022191,2]
[355922124,1741716666618,-500.0,0.00022191,2]
[355922125,1741716666627,-1013.34,0.00022191,2]
[355922126,1741716666637,-500.0,0.00022191,2]
[355922127,1741716666646,-500.0,0.00022191,2]
[355922128,1741716666655,-345.72119183,0.00022191,2]
[355922129,1741716666664,-500.0,0.00022191,2]
[355922130,1741716666674,-519.20655899,0.00022191,2]
[355922131,1741716666683,-500.0,0.00022191,2]
[355922132,1741716666693,-500.0,0.00022191,2]
[355922133,1741716666702,-430.50442131,0.00022191,2]
[355922134,1741716666712,-500.0,0.00022191,2]
[355922135,1741716666722,-500.0,0.00022191,2]
[355922136,1741716666732,-500.0,0.00022191,2]
[355922137,1741716666741,-2686.03,0.00022191,2]
[355922138,1741716666751,-1570.16,0.00022191,2]
[355922139,1741716666761,-500.0,0.00022191,2]
[355922140,1741716666770,-500.0,0.00022191,2]
[355922141,1741716666780,-1595.33,0.00022191,2]
[355922142,1741716666789,-500.0,0.00022191,2]
[355922143,1741716666799,-500.0,0.00022191,2]
[355922144,1741716666808,-500.0,0.00022191,2]
[355922145,1741716666817,-2451.3,0.00022191,2]
[355922146,1741716666827,-1447.92,0.00022191,2]
[355922147,1741716666836,-500.0,0.00022191,2]
[355922148,1741716666845,-500.0,0.00022191,2]
[355922149,1741716666855,-500.0,0.00022191,2]
[355922150,1741716666865,-500.0,0.00022191,2]
[355922151,1741716666874,-2298.88,0.00022191,2]
[355922152,1741716666883,-500.0,0.00022191,2]
[355922153,1741716666892,-500.0,0.00022191,2]
[355922154,1741716666902,-595.71675009,0.00022191,2]
[355922155,1741716666911,-500.0,0.00022191,2]
[355922156,1741716666921,-500.0,0.00022191,2]
[355922157,1741716666930,-2808.13,0.00022191,2]
[355922158,1741716666939,-500.0,0.00022191,2]
[355922159,1741716666949,-200.0,0.00022191,2]
[355922160,1741716666958,-500.0,0.00022191,2]
[355922161,1741716666968,-500.0,0.00022191,2]
[355922162,1741716666977,-500.0,0.00022191,2]
[355922163,1741716666986,-500.0,0.00022191,2]
[355922164,1741716666995,-500.0,0.00022191,2]
[355922165,1741716667005,-2473.59,0.00022191,2]
[355922166,1741716667017,-500.0,0.00022191,2]
[355922167,1741716667031,-500.0,0.00022191,2]
[355922168,1741716667040,-500.0,0.00022191,2]
[355922169,1741716667050,-500.0,0.00022191,2]
[355922170,1741716667059,-500.0,0.00022191,2]
[355922171,1741716667070,-500.0,0.00022191,2]
[355922172,1741716667079,-500.0,0.00022191,2]
[355922173,1741716667089,-500.0,0.00022191,2]
[355922174,1741716667098,-2284.96,0.00022191,2]
[355922175,1741716667109,-500.0,0.00022191,2]
[355922176,1741716667118,-500.0,0.00022191,2]
[355922177,1741716667129,-780.35,0.00022191,2]
[355922178,1741716667138,-500.0,0.00022191,2]
[355922179,1741716667148,-1184.9,0.00022191,2]
[355922180,1741716667157,-500.0,0.00022191,2]
[355922181,1741716667167,-1614.31,0.00022191,2]
[355922182,1741716667177,-500.0,0.00022191,2]
[355922183,1741716667187,-896.04,0.00022191,2]
[355922184,1741716667197,-500.0,0.00022191,2]
[355922185,1741716667206,-825.42,0.00022191,2]
[355922186,1741716667216,-500.0,0.00022191,2]
[355922187,1741716667226,-612.17,0.00022191,2]
[355922188,1741716667236,-500.0,0.00022191,2]
[355922189,1741716667246,-500.0,0.00022191,2]
[355922190,1741716667255,-500.0,0.00022191,2]
[355922191,1741716667270,-500.0,0.00022191,2]
[355922192,1741716667280,-500.0,0.00022191,2]
[355922193,1741716667290,-9645.49,0.00022191,2]
[355922194,1741716667299,-1857.45,0.00022191,2]
[355922195,1741716667308,-500.0,0.00022191,2]
[355922196,1741716667317,-1429.9,0.00022191,2]
[355922197,1741716667327,-500.0,0.00022191,2]
[355922198,1741716667336,-500.0,0.00022191,2]
[355922199,1741716667345,-500.0,0.00022191,2]
[355922200,1741716667354,-899.98,0.00022191,2]
[355922201,1741716667363,-1000.0,0.00022191,2]
[355922202,1741716667373,-500.0,0.00022191,2]
[355922203,1741716667382,-500.0,0.00022191,2]
[355922204,1741716667391,-7102.33,0.00022191,2]
[355922205,1741716667401,-500.0,0.00022191,2]
[355922206,1741716667410,-500.0,0.00022191,2]
[355922207,1741716667419,-500.0,0.00022191,2]
[355922208,1741716667428,-11976.4,0.00022191,2]
[355922209,1741716667437,-500.0,0.00022191,2]
[355922210,1741716667447,-1284.87,0.00022191,2]
[355922211,1741716667456,-186.84422406,0.00022191,2]
[355922212,1741716667465,-500.0,0.00022191,2]
[355922213,1741716667475,-855.17,0.00022191,2]
[355922214,1741716667485,-500.0,0.00022191,2]
[355922215,1741716667495,-500.0,0.00022191,2]
[355922216,1741716667504,-500.0,0.00022191,2]
[355922217,1741716667517,-500.0,0.00022191,2]
[355922218,1741716667527,-500.0,0.00022191,2]
[355922219,1741716667536,-500.0,0.00022191,2]
[355922220,1741716667546,-23367.44,0.00022191,2]
[355922221,1741716667556,-500.0,0.00022191,2]
[355922222,1741716667566,-500.0,0.00022191,2]
[355922223,1741716667575,-518.61287895,0.00022191,2]
[355922224,1741716667585,-500.0,0.00022191,2]
[355922225,1741716667595,-669.93,0.00022191,2]
[355922226,1741716667604,-500.0,0.00022191,2]
[355922227,1741716667614,-500.0,0.00022191,2]
[355922228,1741716667624,-500.0,0.00022191,2]
[355922229,1741716667634,-1907.14,0.00022191,2]
[355922230,1741716667644,-500.0,0.00022191,2]
[355922231,1741716667654,-500.0,0.00022191,2]
[355922232,1741716667663,-500.0,0.00022191,2]
[355922233,1741716667673,-2813.74,0.00022191,2]
[355922234,1741716667683,-500.0,0.00022191,2]
[355922235,1741716667693,-562.82,0.00022191,2]
[355922236,1741716667702,-500.0,0.00022191,2]
[355922237,1741716667712,-1222.25,0.00022191,2]
[355922238,1741716667722,-500.0,0.00022191,2]
[355922239,1741716667732,-290.39188916,0.00022191,2]
[355922240,1741716667742,-521.15682889,0.00022191,2]
[355922241,1741716667752,-514.05,0.00022191,2]
[355922242,1741716667765,-500.0,0.00022191,2]
[355922243,1741716667776,-2182.16,0.00022191,2]
[355922244,1741716667786,-500.0,0.00022191,2]
[355922245,1741716667796,-500.0,0.00022191,2]
[355922246,1741716667805,-500.0,0.00022191,2]
[355922247,1741716667815,-573.01,0.00022191,2]
[355922248,1741716667825,-4470.27,0.00022191,2]
[355922249,1741716667835,-1342.73,0.00022191,2]
[355922250,1741716667844,-500.0,0.00022191,2]
[355922251,1741716667854,-914.18,0.00022191,2]
[355922252,1741716667863,-500.0,0.00022191,2]
[355922253,1741716667872,-500.0,0.00022191,2]
[355922254,1741716667882,-578.89,0.00022191,2]
[355922255,1741716667892,-500.0,0.00022191,2]
[355922256,1741716667901,-500.0,0.00022191,2]
[355922257,1741716667911,-500.0,0.00022191,2]
[355922258,1741716667921,-507.43715049,0.00022191,2]
[355922259,1741716667931,-989.87,0.00022191,2]
[355922260,1741716667940,-934.23,0.00022191,2]
[355922261,1741716667949,-885.21,0.00022191,2]
[355922262,1741716667958,-2800.07,0.00022191,2]
[355922263,1741716667967,-500.0,0.00022191,2]
[355922264,1741716667977,-1444.17,0.00022191,2]
[355922265,1741716667986,-500.0,0.00022191,2]
[355922266,1741716667996,-557.15386671,0.00022191,2]
[355922267,1741716668005,-500.0,0.00022191,2]
[355922268,1741716668018,-4730.12,0.00022191,2]
[355922269,1741716668028,-500.0,0.00022191,2]
[355922270,1741716668041,-500.0,0.00022191,2]
[355922271,1741716668051,-9446.84,0.00022191,2]
[355922272,1741716668060,-500.0,0.00022191,2]
[355922273,1741716668069,-3755.9,0.00022191,2]
[355922274,1741716668080,-500.0,0.00022191,2]
[355922275,1741716668089,-500.0,0.00022191,2]
[355922276,1741716668099,-2814.21,0.00022191,2]
[355922277,1741716668110,-3691.0,0.00022191,2]
[355922278,1741716668120,-1202.86,0.00022191,2]
[355922279,1741716668129,-500.0,0.00022191,2]
[355922280,1741716668139,-587.88,0.00022191,2]
[355922281,1741716668148,-510.53982281,0.00022191,2]
[355922282,1741716668158,-388.64875767,0.00022191,2]